bitfinex/quotes_ETHUSD_20241216
["timestamp","ask_amount","ask_price","bid_price","bid_amount"]
[1734314685735,2.49592,4006.6,4005.6,0.5013598]
[1734314686283,2.4962,4006.1,4005.6,0.5013598]
[1734314687147,2.49592,4006.6,4005.6,0.5013598]
[1734314687148,2.49606,4006.4,4005.6,0.5013598]
[1734314687347,2.49607,4006.3,4005.7,0.8176]
[1734314687748,2.49615,4006.2,4005.7,0.8176]
[1734314689690,2.48666387,4006.2,4005.7,0.8176]
[1734314690652,2.49619,4006.1,4005.7,0.8176]
[1734314691193,2.49569,4006.9,4005.7,0.8176]
[1734314691410,0.85648999,4006.8,4005.7,0.8176]
[1734314691569,2.49594,4006.5,4005.7,0.8176]
[1734314691777,2.49625,4006.0,4005.7,0.8176]
[1734314692384,3.53242032,4006.9,4005.7,0.8176]
[1734314692385,2.49632,4005.9,4005.7,0.8176]
[1734314692593,2.49633,4005.9,4005.7,0.8176]
[1734314693363,0.7666,4006.7,4005.0,0.7568]
[1734314693578,2.49661,4005.5,4005.0,0.7568]
[1734314693758,2.49661,4005.5,4005.1,0.49511272]
[1734314693959,2.49643,4005.8,4005.1,0.62030399]
[1734314694205,0.7666,4006.3,4005.1,0.49511272]
[1734314694405,2.49632,4005.9,4005.1,0.49511272]
[1734314694612,2.49638,4005.8,4005.1,0.49511272]
[1734314694768,2.49644,4005.7,4005.1,0.49511272]
[1734314694968,2.49644,4005.7,4005.2,0.12519127]
[1734314697307,0.7666,4006.3,4005.2,0.12519127]
[1734314697552,0.7666,4006.3,4005.0,0.7568]
[1734314697553,2.49657,4005.5,4005.0,0.7568]
[1734314698571,2.49669,4005.3,4005.0,0.7568]
[1734314698772,2.49676,4005.2,4005.0,0.7568]
[1734314699472,1.03673032,4005.9,4005.0,0.7568]
[1734314699676,1.03673032,4006.4,4005.3,0.7724]
[1734314699875,2.49584,4006.7,4005.4,0.7724]
[1734314700217,2.49581,4006.7,4005.5,0.7724]
[1734314700402,2.49588,4006.6,4005.6,0.7724]
[1734314700599,2.49588,4006.6,4005.7,0.18107055]
[1734314701119,1.71714518,4006.8,4005.7,0.18107055]
[1734314701120,4.21290518,4006.8,4005.8,0.7724]
[1734314701334,1.71714518,4006.8,4005.9,0.7844]
[1734314701516,1.71714518,4006.8,4006.0,1.36822199]
[1734314701717,1.71714518,4006.8,4006.0,0.20037761]
[1734314702398,2.4957,4006.9,4006.0,0.20037761]
[1734314702599,3.53223032,4007.3,4006.0,0.20037761]
[1734314702600,1.03673032,4007.3,4006.0,0.20037761]
[1734314702800,1.03673032,4007.3,4005.9,0.7844]
[1734314702801,2.49575,4006.9,4006.1,0.20230831]
[1734314703004,2.49578,4006.8,4005.9,0.7844]
[1734314703639,2.49578,4006.8,4005.6,1.03830553]
[1734314703640,4.20201916,4006.7,4005.7,0.29091515]
[1734314703807,1.84516693,4005.8,4004.7,0.7852]
[1734314704006,2.4966,4005.5,4004.7,0.7852]
[1734314704207,0.85863748,4005.7,4004.7,0.7852]
[1734314704208,1.03836693,4005.7,4004.7,0.7852]
[1734314704407,1.03836693,4006.0,4004.7,0.7852]
[1734314704607,2.49631,4005.9,4004.8,0.02491534]
[1734314704938,1.03836693,4006.5,4004.9,0.7947]
[1734314705138,2.75581184,4006.7,4005.0,0.7947]
[1734314705293,2.49611,4006.3,4005.0,0.7947]
[1734314705494,2.49611,4006.3,4005.8,0.51020967]
[1734314705694,2.49611,4006.3,4005.9,0.8178]
[1734314706436,2.4959,4006.6,4005.9,0.8178]
[1734314706839,1.71744491,4006.7,4005.9,0.8178]
[1734314707040,1.71744491,4006.7,4005.9,0.95060097]
[1734314707239,1.71744491,4006.7,4005.9,2.62270425]
[1734314707546,1.71744491,4006.7,4006.1,0.8132]
[1734314709105,1.71744491,4006.7,4006.6,0.49857996]
[1734314711610,1.71744491,4006.7,4006.6,1.25767996]
[1734314712785,2.49534,4007.5,4006.6,1.38344796]
[1734314713854,2.49539,4007.4,4006.6,1.25767996]
[1734314714058,1.86602792,4008.1,4006.6,1.25767996]
[1734314714059,2.49545,4007.3,4006.6,1.25767996]
[1734314714270,2.49519,4007.7,4006.6,0.7591]
[1734314714471,2.49519,4007.7,4005.3,2.7341318]
[1734314714472,1.68497758,4007.6,4006.0,0.49804473]
[1734314714687,2.4959,4006.6,4006.0,0.49804473]
[1734314715190,2.49538,4007.4,4005.8,0.8278]
[1734314715361,2.49605,4006.4,4005.8,0.8278]
[1734314715686,2.49605,4006.4,4005.8,1.33108205]
[1734314715847,0.831,4006.4,4005.2,0.7933]
[1734314716047,2.49629,4006.0,4005.2,0.7933]
[1734314716280,2.49633,4005.9,4005.2,0.7933]
[1734314716947,0.831,4006.4,4005.5,0.48757007]
[1734314717188,2.4962,4006.1,4005.5,0.48757007]
[1734314717391,0.831,4006.4,4005.5,0.48757007]
[1734314717392,2.49606,4006.4,4005.5,0.48757007]
[1734314718088,2.49606,4006.4,4005.2,0.7933]
[1734314718448,2.49606,4006.4,4005.3,0.18360653]
[1734314718664,0.831,4006.8,4005.2,0.7933]
[1734314718871,2.4961,4006.3,4005.2,0.7933]
[1734314719394,2.4961,4006.3,4005.4,0.48913612]
[1734314719700,2.4961,4006.3,4005.2,0.7933]
[1734314719701,3.53405792,4007.5,4006.3,0.7729]
[1734314719863,2.49533,4007.5,4006.3,0.7729]
[1734314720065,0.8294,4007.8,4006.5,0.7729]
[1734314720298,2.49497,4008.1,4006.6,0.02494945]
[1734314720517,2.49497,4008.1,4006.7,0.7729]
[1734314720694,2.49503,4008.0,4006.7,0.7729]
[1734314720886,0.1663817,4008.4,4006.7,0.7729]
[1734314721118,2.49524,4007.7,4006.7,0.7729]
[1734314721316,0.1663817,4008.4,4006.7,0.7729]
[1734314721491,2.49488,4008.2,4006.7,0.7729]
[1734314721687,2.31587173,4008.4,4006.7,0.7729]
[1734314721887,0.7964,4007.9,4006.7,0.7729]
[1734314722134,2.49513,4007.8,4006.2,0.7903]
[1734314722431,2.49513,4007.8,4006.3,0.49811659]
[1734314722590,2.49513,4007.8,4006.2,0.7903]
[1734314722591,0.85684405,4007.7,4006.2,0.7903]
[1734314722792,2.4959,4006.6,4006.2,0.7903]
[1734314723097,2.49596,4006.5,4006.2,0.7903]
[1734314723639,3.31264,4007.0,4006.2,0.7903]
[1734314723640,2.49602,4006.4,4006.2,0.7903]
[1734314724599,2.49602,4006.4,4005.7,0.8261]
[1734314724799,2.49569,4006.9,4005.7,0.8261]
[1734314725226,2.49588,4006.6,4005.7,0.8261]
[1734314725830,2.49595,4006.5,4005.7,0.8261]
[1734314726001,2.4958,4006.8,4005.7,0.97174924]
[1734314727295,2.49593,4006.6,4005.7,0.97174924]
[1734314727549,1.84092792,4007.6,4005.7,0.97174924]
[1734314727550,2.49598,4006.5,4005.7,0.97174924]
[1734314727728,2.49598,4006.5,4005.7,0.8261]
[1734314727901,2.49601,4006.4,4005.7,0.8261]
[1734314731730,0.8206,4006.7,4005.1,0.8263]
[1734314731916,2.49645,4005.7,4005.1,0.8263]
[1734314732117,2.49665,4005.4,4005.1,0.8263]
[1734314733719,2.49673,4005.3,4004.8,0.50047522]
[1734314737390,2.49644,4005.7,4004.8,0.50047522]
[1734314737558,2.49644,4005.7,4004.7,0.7913]
[1734314737559,2.49668,4005.4,4004.7,0.7913]
[1734314737758,2.49671,4005.3,4004.7,0.7913]
[1734314738700,2.49676,4005.2,4004.7,0.7913]
[1734314739401,2.49676,4005.2,4004.7,1.28493676]
[1734314740800,2.49697,4004.9,4004.7,0.7913]
[1734314741006,0.7817,4005.6,4004.4,0.8049]
[1734314741209,2.49713,4004.6,4004.4,0.8049]
[1734314741363,2.49713,4004.6,4004.1,1.29863787]
[1734314741566,2.49699,4004.9,4004.1,1.29863787]
[1734314741758,2.49679,4005.2,4004.1,1.42850166]
[1734314742798,2.49707,4004.7,4004.1,1.42850166]
[1734314744703,2.14787553,4005.5,4004.1,1.42850166]
[1734314744905,3.27826,4005.6,4004.2,0.8189]
[1734314744906,2.49671,4005.3,4004.2,0.8189]
[1734314745108,2.4967,4005.3,4004.3,0.14418017]
[1734314745658,2.4967,4005.3,4004.4,0.7812]
[1734314746059,0.7917,4005.8,4004.4,0.7812]
[1734314746719,2.49689,4005.0,4004.4,0.7812]
[1734314747011,2.49689,4005.0,4004.4,0.9230418]
[1734314747221,0.7917,4005.8,4004.4,0.7812]
[1734314747417,2.14787553,4005.5,4004.4,0.7812]
[1734314747907,2.49701,4004.8,4004.4,0.7812]
[1734314748724,2.14787553,4004.5,4003.4,1.15645218]
[1734314748896,0.8088,4003.7,4003.0,0.7667]
[1734314749105,0.8088,4003.7,4002.6,0.39000532]
[1734314749279,2.49792,4003.4,4002.6,0.39000532]
[1734314749461,2.49792,4003.4,4002.2,0.7551]
[1734314749462,2.49844,4002.5,4002.2,0.7551]
[1734314750559,2.49781,4003.5,4002.2,0.7551]
[1734314750560,2.4981,4003.1,4002.2,0.7551]
[1734314750765,2.49832,4002.7,4002.2,0.7551]
[1734314750978,2.49531529,4002.7,4001.9,0.64627366]
[1734314751316,2.49531529,4002.7,4001.9,0.50107311]
[1734314752617,2.49839,4002.6,4001.9,0.50107311]
[1734314752915,2.49846,4002.5,4001.1,1.49956]
[1734314753117,2.49856,4002.4,4001.2,0.18399241]
[1734314753327,2.49856,4002.4,4001.0,1.4996]
[1734314753998,2.49856,4002.4,4001.1,0.7021]
[1734314754747,2.49856,4002.4,4001.1,2.20167]
[1734314755106,2.49856,4002.4,4001.2,0.220167]
[1734314755851,2.49859,4002.3,4001.5,0.49045354]
[1734314756050,0.8279,4002.7,4001.1,0.7021]
[1734314756219,2.49896,4001.7,4001.1,0.7021]
[1734314756606,2.49843,4002.5,4001.1,0.7021]
[1734314756813,0.8279,4002.7,4001.1,0.7021]
[1734314756814,2.49913,4001.4,4001.1,0.7021]
[1734314757122,2.49913,4001.4,4000.1,1.08505842]
[1734314757123,5.87119761,4002.4,4000.2,0.7021]
[1734314757446,5.87119761,4002.4,4000.2,1.03081384]
[1734314757447,0.7853,4001.6,4000.2,1.03081384]
[1734314757662,0.7853,4001.6,4000.4,0.49944078]
[1734314757801,0.7853,4001.2,4000.1,1.08505842]
[1734314758003,2.58739761,4001.3,4000.1,1.08505842]
[1734314758004,2.49984,4000.3,4000.1,1.08505842]
[1734314758204,2.49984,4000.3,4000.1,0.04379097]
[1734314759552,2.49996,4000.1,3999.2,0.7021]
[1734314759765,0.7853,4000.4,3999.2,0.7021]
[1734314759766,2.50013,3999.8,3999.2,0.7021]
[1734314759907,0.7853,4000.4,3999.2,0.7021]
[1734314759908,2.49996,4000.1,3999.2,0.7021]
[1734314760414,0.7853,4000.4,3999.2,0.7021]
[1734314760851,2.50023,3999.7,3999.2,0.7021]
[1734314761044,0.7853,4000.4,3999.0,0.50613814]
[1734314761370,0.7853,4000.4,3998.8,1.77758068]
[1734314761371,2.58739761,4000.3,3998.8,1.77758068]
[1734314761586,2.50045,3999.3,3998.8,1.77758068]
[1734314761760,2.58739761,4000.3,3998.8,1.77758068]
[1734314761761,2.50036,3999.5,3998.8,1.95533875]
[1734314762074,2.50036,3999.5,3998.8,1.77758068]
[1734314762260,2.50039,3999.4,3998.8,1.77758068]
[1734314762428,2.50067,3999.0,3998.4,0.39017231]
[1734314762634,2.50067,3999.0,3998.2,0.7021]
[1734314762827,2.50067,3999.0,3998.3,0.48925355]
[1734314763367,0.7941,3999.3,3997.2,0.7021]
[1734314763938,2.50121,3998.1,3997.2,0.7021]
[1734314764974,0.8075,3998.5,3997.2,0.7021]
[1734314764975,2.50126,3998.0,3997.3,0.50902347]
[1734314765175,2.50126,3998.0,3997.2,0.7021]
[1734314765470,2.50107,3998.3,3997.2,1.19548043]
[1734314765677,2.50107,3998.3,3997.3,0.16432018]
[1734314765832,0.8075,3998.5,3996.8,0.7021]
[1734314765833,2.50146,3997.7,3996.8,0.7021]
[1734314766029,2.50152,3997.6,3996.8,0.7021]
[1734314766332,0.8075,3998.5,3997.1,0.49093152]
[1734314766540,2.50125,3998.0,3997.1,0.49093152]
[1734314766738,2.50122,3998.1,3997.1,0.49093152]
[1734314766739,2.50155,3997.6,3997.1,0.49093152]
[1734314767260,2.50135,3997.9,3997.1,0.49093152]
[1734314767442,0.8075,3998.5,3996.8,0.7021]
[1734314767443,1.31392463,3998.5,3996.8,0.7021]
[1734314767641,2.50142,3997.8,3996.8,0.7021]
[1734314768079,2.50112,3998.2,3996.8,0.7021]
[1734314768756,2.50187,3997.0,3996.1,0.7021]
[1734314769072,0.8314,3997.5,3996.1,0.7021]
[1734314769403,2.50195,3996.9,3996.1,0.7021]
[1734314769881,0.8314,3997.5,3996.1,0.7021]
[1734314769882,3.33298,3997.5,3996.1,0.7021]
[1734314770065,3.33298,3997.5,3996.1,0.97352028]
[1734314770289,2.50163,3997.4,3996.1,0.97352028]
[1734314770456,2.50163,3997.4,3996.1,0.7021]
[1734314771343,2.5012,3998.1,3996.1,0.7021]
[1734314771344,0.756,3998.2,3996.1,2.58739761]
[1734314771541,2.50118,3998.1,3996.5,1.5013]
[1734314771740,2.50118,3998.1,3996.6,2.20335]
[1734314771949,2.50118,3998.1,3996.7,1.50122]
[1734314772647,2.50118,3998.1,3996.8,0.49251524]
[1734314773153,0.756,3998.2,3996.8,0.49251524]
[1734314773357,0.50106638,3998.9,3996.9,2.20323]
[1734314773358,2.50108,3998.3,3996.9,2.20323]
[1734314773557,2.50118,3998.2,3996.9,0.7021]
[1734314773842,0.7614,3998.6,3996.9,0.7021]
[1734314774043,0.7614,3998.6,3996.9,0.97168552]
[1734314774570,0.7614,3998.6,3996.9,0.7021]
[1734314774966,2.50093,3998.5,3996.9,0.7021]
[1734314775186,2.50126,3998.0,3996.9,0.7021]
[1734314775381,0.7614,3998.6,3996.9,0.7021]
[1734314775382,2.50107,3998.3,3996.9,0.7021]
[1734314775883,2.50156,3997.5,3996.9,0.7021]
[1734314776087,2.50106,3998.3,3996.3,0.7021]
[1734314776384,2.50163,3997.4,3996.3,0.7021]
[1734314776588,2.50106,3998.3,3996.3,0.7021]
[1734314776885,3.2819,3998.4,3996.6,1.50127]
[1734314777044,0.7809,3998.4,3996.4,0.7021]
[1734314777471,2.50178,3997.2,3996.4,0.7021]
[1734314777675,0.7809,3997.5,3996.4,0.7021]
[1734314777889,2.50181,3997.1,3996.4,0.7021]
[1734314778101,2.50189,3997.0,3996.4,0.7021]
[1734314778252,0.7809,3997.5,3996.4,0.7021]
[1734314778451,2.50198,3996.9,3996.4,0.7021]
[1734314778652,0.7809,3997.5,3996.4,0.7021]
[1734314778853,2.50203,3996.8,3996.4,0.7021]
[1734314779365,2.50203,3996.8,3995.7,0.49890997]
[1734314779855,0.7809,3997.5,3995.9,1.50153]
[1734314780067,2.50176,3997.2,3995.9,1.50153]
[1734314780651,3.28248,3997.5,3995.7,0.73803582]
[1734314780852,3.28248,3997.5,3995.8,0.33254334]
[1734314781097,0.7809,3997.5,3996.0,1.50146]
[1734314781254,0.7809,3997.5,3995.8,0.33254334]
[1734314781454,2.50176,3997.2,3995.8,1.83411334]
[1734314781762,2.50176,3997.2,3995.9,0.51595468]
[1734314782497,0.7809,3997.5,3995.7,0.49890997]
[1734314782803,0.7809,3997.5,3995.4,0.39064849]
[1734314782804,2.50211,3996.7,3995.4,0.49379628]
[1734314783106,0.7951,3997.3,3995.4,0.49379628]
[1734314783408,2.50221,3996.5,3995.4,0.49379628]
[1734314783702,2.50205,3996.8,3995.4,0.49379628]
[1734314783912,2.50181,3997.1,3995.4,0.49379628]
[1734314783913,2.50181,3997.1,3995.5,0.27237564]
[1734314784203,0.7951,3997.3,3995.5,0.27237564]
[1734314784407,2.50227,3996.4,3995.4,0.49379628]
[1734314785705,2.50237,3996.2,3995.4,0.49379628]
[1734314785857,2.50258,3995.9,3995.2,0.72821008]
[1734314786057,2.50257,3995.9,3994.8,0.3907264]
[1734314786360,2.50269,3995.7,3994.9,0.2978124]
[1734314786589,2.50269,3995.7,3994.3,1.50213]
[1734314786786,2.50269,3995.7,3994.9,0.51009946]
[1734314786989,2.50255,3996.0,3994.2,0.39079741]
[1734314787172,0.8321,3995.7,3994.3,0.2978195]
[1734314787372,2.50292,3995.4,3994.3,0.2978195]
[1734314787770,0.8321,3995.7,3994.3,0.80246789]
[1734314787988,2.5029,3995.4,3994.3,0.80246789]
[1734314788186,2.5029,3995.4,3994.4,0.37806629]
[1734314788400,2.50273,3995.7,3994.4,1.88015629]
[1734314788775,2.50273,3995.7,3994.5,1.50205]
[1734314789314,2.50263,3995.8,3994.5,1.50205]
[1734314789490,2.50269,3995.7,3994.5,1.77960621]
[1734314789817,0.8321,3996.1,3994.5,0.27755621]
[1734314790113,0.8321,3996.1,3994.4,0.37806629]
[1734314790114,2.50245,3996.1,3994.4,0.37806629]
[1734314790287,2.50247,3996.1,3994.4,0.37806629]
[1734314790495,0.8111,3996.4,3994.6,1.50202]
[1734314790496,2.50251,3996.0,3994.6,1.50202]
[1734314790710,2.50251,3996.0,3994.7,0.18800863]
[1734314791301,0.8111,3996.4,3994.7,0.18800863]
[1734314791485,2.5026,3995.9,3994.7,0.18800863]
[1734314791681,0.7927,3996.8,3995.0,1.50187]
[1734314791890,2.50206,3996.7,3995.1,1.652017]
[1734314792227,3.2947,3996.8,3995.1,1.652017]
[1734314792387,2.50227,3996.4,3995.1,1.652017]
[1734314792814,2.50206,3996.7,3995.1,0.150187]
[1734314793422,2.5024,3996.2,3994.9,2.00775338]
[1734314794236,2.50256,3995.9,3994.9,0.50584338]
[1734314794416,2.50256,3995.9,3994.9,0.72542858]
[1734314794598,0.7927,3996.8,3994.9,0.72542858]
[1734314794791,2.5026,3995.9,3994.9,0.72542858]
[1734314795113,2.50229,3996.4,3994.9,0.50584338]
[1734314795315,2.50262,3995.9,3994.9,0.50584338]
[1734314796273,3.26746,3996.4,3994.4,0.37806629]
[1734314796274,2.50275,3995.6,3994.4,0.37806629]
[1734314796561,0.7652,3996.4,3994.2,0.39079741]
[1734314796731,2.50283,3995.5,3994.2,0.39079741]
[1734314796934,2.50283,3995.5,3994.7,0.49632669]
[1734314797118,2.50268,3995.8,3994.7,0.49632669]
[1734314797461,2.5027,3995.7,3994.7,0.49632669]
[1734314797752,2.50276,3995.6,3994.7,0.49632669]
[1734314798372,2.50312,3995.0,3994.2,0.39079741]
[1734314798682,2.50312,3995.0,3993.9,0.5136355]
[1734314798971,2.50327,3994.8,3994.0,0.46033531]
[1734314799143,0.8301,3995.6,3993.9,0.5136355]
[1734314799321,0.8301,3995.6,3993.9,0.0015]
[1734314799322,2.50335,3994.7,3993.9,0.0015]
[1734314799741,2.50344,3994.5,3993.9,0.0015]
[1734314799926,2.50331,3994.7,3993.9,0.0015]
[1734314800229,2.50316,3995.0,3993.9,0.0015]
[1734314800920,1.32387465,3995.6,3993.9,0.0015]
[1734314801118,2.50371,3994.1,3993.1,0.77101111]
[1734314801319,2.50376,3994.0,3993.1,0.77101111]
[1734314801558,2.50383,3993.9,3993.1,0.77101111]
[1734314802117,0.8325,3994.7,3993.1,0.77101111]
[1734314802724,2.50401,3993.6,3993.1,0.77101111]
[1734314803620,2.50377,3994.0,3993.1,0.77101111]
[1734314803921,2.50382,3993.9,3993.1,0.77101111]
[1734314804259,2.50389,3993.8,3993.1,0.77101111]
[1734314804419,2.50385,3993.9,3993.1,0.77101111]
[1734314804622,0.8292,3994.6,3993.1,0.77101111]
[1734314805020,2.50356,3994.4,3993.1,0.77101111]
[1734314805242,0.8292,3994.6,3993.1,0.77101111]
[1734314805243,2.50357,3994.3,3993.1,0.77101111]
[1734314805454,0.8292,3994.6,3992.5,0.50623284]
[1734314805783,2.58739761,3994.8,3992.3,0.1663817]
[1734314805784,2.5042,3993.3,3992.3,0.1663817]
[1734314806058,2.50426,3993.2,3992.3,0.1663817]
[1734314806369,0.7977,3993.8,3992.3,0.1663817]
[1734314806568,2.50439,3993.0,3992.3,0.1663817]
[1734314807224,2.50424,3993.3,3992.3,0.1663817]
[1734314808049,2.50439,3993.0,3992.3,0.1663817]
[1734314808558,0.7977,3993.8,3992.3,0.1663817]
[1734314808559,2.50394,3993.7,3992.3,0.1663817]
[1734314808856,2.50415,3993.4,3992.3,0.1663817]
[1734314809648,0.7977,3993.8,3992.3,0.1663817]
[1734314809855,2.50388,3993.8,3992.3,0.1663817]
[1734314810061,0.7671,3994.3,3992.6,1.50277]
[1734314810455,2.50382,3993.9,3992.7,0.49458097]
[1734314811277,0.7671,3994.3,3992.7,0.49458097]
[1734314811474,3.27066,3994.3,3992.7,0.49458097]
[1734314811681,2.50388,3993.9,3992.7,0.49458097]
[1734314811877,2.50378,3994.0,3992.7,0.49458097]
[1734314812202,2.50389,3993.8,3992.8,0.1997391]
[1734314812400,2.50389,3993.8,3992.7,0.49458097]
[1734314812401,2.50363,3994.2,3992.3,0.1663817]
[1734314812801,0.7671,3994.3,3992.3,0.1663817]
[1734314812989,2.50363,3994.2,3992.3,0.1663817]
[1734314813306,2.50431,3993.2,3992.3,0.1663817]
[1734314813825,2.50432,3993.1,3992.3,0.1663817]
[1734314813971,0.7781,3993.8,3992.3,0.1663817]
[1734314814331,2.50463,3992.6,3992.3,0.1663817]
[1734314815081,2.50431,3993.2,3992.3,0.1663817]
[1734314815633,3.28198,3993.8,3992.3,0.1663817]
[1734314816742,2.50394,3993.7,3992.3,0.1663817]
[1734314816933,2.50444,3992.9,3992.3,0.1663817]
[1734314817074,3.28198,3993.8,3992.3,0.1663817]
[1734314817279,2.50437,3993.1,3992.3,0.1663817]
[1734314818028,0.7781,3993.8,3992.3,0.1663817]
[1734314818396,2.50427,3993.2,3992.3,0.1663817]
[1734314818818,2.50423,3993.3,3992.3,0.1663817]
[1734314819135,2.50433,3993.1,3992.3,0.1663817]
[1734314819337,2.50406,3993.5,3992.3,0.1663817]
[1734314819627,0.7781,3993.8,3992.3,0.1663817]
[1734314819826,2.50409,3993.5,3992.3,0.1663817]
[1734314820026,2.50413,3993.4,3992.3,0.33331487]
[1734314820234,2.50394,3993.7,3992.3,0.1663817]
[1734314820557,2.50465,3992.6,3992.3,0.1663817]
[1734314820677,3.36549761,3993.8,3992.3,0.1663817]
[1734314820678,2.50448,3992.9,3992.3,0.1663817]
[1734314821080,2.50451,3992.8,3992.3,0.1663817]
[1734314821323,2.50394,3993.7,3992.3,0.1663817]
[1734314821527,2.5044,3993.0,3992.3,0.1663817]
[1734314821853,2.50427,3993.2,3992.3,0.1663817]
[1734314823188,2.50417,3993.4,3992.3,0.1663817]
[1734314823396,2.5042,3993.3,3992.3,0.1663817]
[1734314824325,2.50425,3993.2,3992.3,0.38366482]
[1734314824681,2.5043,3993.2,3992.3,0.1663817]
[1734314824876,0.7781,3993.8,3992.3,0.1663817]
[1734314825114,2.504,3993.6,3992.3,0.1663817]
[1734314825917,2.50429,3993.2,3992.3,0.1663817]
[1734314827588,0.7781,3993.8,3992.3,0.1663817]
[1734314827789,2.50446,3992.9,3992.3,0.1663817]
[1734314827990,2.50414,3993.4,3992.3,0.1663817]
[1734314828197,2.5047,3992.5,3992.3,0.1663817]
[1734314829545,2.5047,3992.5,3990.3,2.16038153]
[1734314829546,2.5053,3991.6,3990.3,3.66402153]
[1734314829722,2.50532,3991.5,3990.8,0.49318565]
[1734314830945,2.50475,3992.4,3990.8,0.49318565]
[1734314831145,2.50482,3992.3,3990.8,0.49318565]
[1734314831665,2.50483,3992.3,3990.7,0.49493773]
[1734314831884,2.50483,3992.3,3990.4,0.37911628]
[1734314832006,0.8125,3992.2,3990.6,0.49969337]
[1734314832406,0.8125,3992.2,3990.6,0.73793033]
[1734314832611,0.8125,3992.2,3990.6,2.24145033]
[1734314832811,0.8125,3992.2,3990.6,0.23823696]
[1734314833013,0.8125,3992.2,3990.6,1.50352]
[1734314833014,3.31741,3992.2,3990.6,1.50352]
[1734314833931,3.31741,3992.2,3990.5,0.49721971]
[1734314834133,3.31741,3992.2,3990.7,1.50348]
[1734314834342,0.8125,3992.2,3990.8,1.50344]
[1734314834534,0.8125,3992.2,3990.8,1.70350597]
[1734314834758,0.8125,3992.2,3990.8,0.20006597]
[1734314834973,3.54271792,3993.7,3991.2,2.60151059]
[1734314835131,0.808,3993.6,3991.2,4.10479059]
[1734314835316,2.50417,3993.4,3991.7,1.5031]
[1734314835520,2.50426,3993.2,3991.7,1.5031]
[1734314835754,0.808,3993.1,3991.7,1.5031]
[1734314836064,0.808,3993.1,3991.2,4.10479059]
[1734314836065,3.31232,3993.1,3991.6,1.50315]
[1734314836410,3.31232,3993.1,3991.3,0.41047906]
[1734314836411,0.808,3993.1,3992.0,1.50299]
[1734314836616,0.808,3993.8,3992.2,1.50293]
[1734314837932,0.808,3993.8,3991.7,4.10462059]
[1734314837933,0.808,3993.8,3992.3,1.50285]
[1734314838555,2.50419,3993.3,3991.3,1.91373906]
[1734314838890,2.50413,3993.4,3991.9,1.50302]
[1734314839035,0.7822,3993.3,3991.9,1.50302]
[1734314840368,0.7822,3993.3,3991.5,1.99542254]
[1734314840575,0.7822,3993.3,3992.0,1.50298]
[1734314840734,0.7822,3993.3,3991.6,1.50315]
[1734314841078,0.7822,3993.3,3991.7,0.24469375]
[1734314841572,0.7822,3993.3,3992.1,1.50296]
[1734314842470,0.7822,3993.3,3991.5,0.49226254]
[1734314843682,0.7822,3993.3,3991.8,1.50308]
[1734314844038,3.28639,3993.3,3991.9,1.50301]
[1734314844336,3.28639,3993.3,3991.9,0.150301]
[1734314844337,0.7822,3993.3,3991.9,0.150301]
[1734314844551,0.7822,3993.3,3992.1,1.50296]
[1734314845581,3.66372792,3993.9,3991.9,0.150301]
[1734314845582,0.7734,3993.2,3991.9,0.150301]
[1734314845760,0.7734,3993.2,3991.6,1.50313]
[1734314845960,2.50441,3993.0,3991.6,1.50313]
[1734314846155,2.50446,3992.9,3991.7,0.24469175]
[1734314846355,2.50451,3992.8,3991.4,1.95474497]
[1734314846556,2.50451,3992.8,3991.5,0.45562556]
[1734314846756,0.7734,3993.2,3991.5,0.45562556]
[1734314846958,0.7734,3993.2,3991.2,2.60151059]
[1734314846959,2.50458,3992.7,3991.3,0.49578874]
[1734314847292,0.7734,3993.0,3990.9,1.50339]
[1734314847293,1.03872792,3993.0,3990.9,1.50339]
[1734314847452,0.7734,3992.7,3991.0,0.41049006]
[1734314847654,1.62791675,3992.7,3991.0,2.00817944]
[1734314848010,2.50477,3992.4,3991.1,1.50333]
[1734314848311,0.7734,3992.7,3991.0,0.50479944]
[1734314848589,2.50495,3992.1,3991.0,0.50479944]
[1734314848766,0.7734,3992.7,3991.0,0.50479944]
[1734314848962,2.50485,3992.3,3991.0,0.50479944]
[1734314849183,2.50485,3992.3,3991.0,0.70562038]
[1734314850120,2.50485,3992.3,3991.0,2.20900038]
[1734314850980,2.50488,3992.2,3991.0,0.70562038]
[1734314851309,2.50488,3992.2,3991.0,0.50479944]
[1734314852016,3.27802,3992.7,3991.1,1.50332]
[1734314852017,2.50473,3992.5,3991.1,1.50332]
[1734314852707,2.50478,3992.4,3991.1,1.50332]
[1734314853210,2.50478,3992.4,3991.1,1.92023413]
[1734314854485,3.27797,3992.7,3991.1,0.41691413]
[1734314854684,3.27797,3992.7,3991.0,2.66582127]
[1734314854685,2.50492,3992.2,3991.0,2.66582127]
[1734314856301,2.50463,3992.6,3990.6,2.16102183]
[1734314856511,2.13449666,3992.5,3990.6,2.80975422]
[1734314856812,1.83652792,3992.6,3990.6,2.80975422]
[1734314856813,2.50513,3991.8,3990.6,2.80975422]
[1734314857019,2.50482,3992.3,3990.6,2.80975422]
[1734314857313,1.03872792,3992.5,3990.4,0.25957387]
[1734314857314,0.7978,3991.8,3990.4,0.25957387]
[1734314857515,0.7978,3991.8,3990.4,0.48856329]
[1734314857717,2.50538,3991.5,3990.4,0.48856329]
[1734314857885,2.50532,3991.5,3990.4,1.00654674]
[1734314858087,0.7978,3991.8,3990.0,1.92754751]
[1734314858088,0.7978,3991.8,3990.0,0.39098871]
[1734314858421,0.7994,3990.7,3989.5,1.02655939]
[1734314858615,0.7994,3990.7,3989.4,2.16102183]
[1734314858616,2.50607,3990.4,3989.4,2.16102183]
[1734314858920,2.50607,3990.4,3989.5,0.49552345]
[1734314859088,2.50609,3990.3,3989.5,0.49552345]
[1734314860940,0.8196,3991.1,3989.5,0.49552345]
[1734314861101,2.50595,3990.5,3989.5,0.79305379]
[1734314861501,2.5058,3990.8,3989.5,0.79305379]
[1734314862316,2.5058,3990.8,3989.5,2.29698379]